[Event "Late-Titled-Tuesday-Blitz-May-07-2024"]
[Site "Chess.com"]
[Date "2024.05.07"]
[Round "1"]
[White "el_sporco"]
[Black "Vazabanga"]
[Result "1-0"]
[WhiteElo "2416"]
[BlackElo "2694"]
[TimeControl "180+1"]
[EndTime "14:09:49 PDT"]
[Termination "el_sporco won by checkmate"]

1. e4 {[%clk 0:02:58.9]} 1... c5 {[%clk 0:02:59.8]} 2. Nf3 {[%clk 0:02:58.5]}
2... d6 {[%clk 0:03:00.1]} 3. d4 {[%clk 0:02:52.4]} 3... cxd4 {[%clk 0:03:01]}
4. Nxd4 {[%clk 0:02:52.9]} 4... Nf6 {[%clk 0:02:58.9]} 5. Nc3 {[%clk 0:02:53.3]}
5... Nc6 {[%clk 0:02:59.2]} 6. Bg5 {[%clk 0:02:52.9]} 6... e6 {[%clk 0:02:59.6]}
7. f4 {[%clk 0:02:53]} 7... Be7 {[%clk 0:02:56.4]} 8. Qd2 {[%clk 0:02:52.7]}
8... Qb6 {[%clk 0:02:56.5]} 9. O-O-O {[%clk 0:02:49.5]} 9... Nxd4 {[%clk
0:02:56]} 10. Qxd4 {[%clk 0:02:50.4]} 10... Qxd4 {[%clk 0:02:56.6]} 11. Rxd4
{[%clk 0:02:51.3]} 11... a6 {[%clk 0:02:57.2]} 12. Kb1 {[%clk 0:02:12]} 12...
Bd7 {[%clk 0:02:51.7]} 13. g3 {[%clk 0:01:58.9]} 13... Bc6 {[%clk 0:02:51.5]}
14. Bg2 {[%clk 0:01:58.3]} 14... h6 {[%clk 0:02:06.8]} 15. Bxf6 {[%clk 0:01:16]}
15... gxf6 {[%clk 0:02:07.7]} 16. Rd2 {[%clk 0:01:14.6]} 16... O-O-O {[%clk
0:02:02.6]} 17. Rhd1 {[%clk 0:01:07.5]} 17... h5 {[%clk 0:02:02.7]} 18. f5
{[%clk 0:01:01.6]} 18... h4 {[%clk 0:01:58.1]} 19. fxe6 {[%clk 0:00:56.1]} 19...
fxe6 {[%clk 0:01:59]} 20. Ne2 {[%clk 0:00:56.7]} 20... f5 {[%clk 0:01:41.5]} 21.
Nd4 {[%clk 0:00:55.3]} 21... fxe4 {[%clk 0:01:31.3]} 22. Nxc6 {[%clk 0:00:43.5]}
22... bxc6 {[%clk 0:01:31]} 23. Bxe4 {[%clk 0:00:44.2]} 23... d5 {[%clk
0:01:30.3]} 24. Bd3 {[%clk 0:00:43.5]} 24... a5 {[%clk 0:01:14.7]} 25. Re2
{[%clk 0:00:44.1]} 25... Kd7 {[%clk 0:01:14.5]} 26. Rde1 {[%clk 0:00:44.2]}
26... Rh6 {[%clk 0:01:14]} 27. Rxe6 {[%clk 0:00:44.2]} 27... Rxe6 {[%clk
0:01:12.3]} 28. Bf5 {[%clk 0:00:44.9]} 28... Rf8 {[%clk 0:01:11]} 29. Bxe6+
{[%clk 0:00:43.3]} 29... Kd6 {[%clk 0:01:11.3]} 30. a3 {[%clk 0:00:40.4]} 30...
Bg5 {[%clk 0:01:03.3]} 31. Bg4 {[%clk 0:00:32.3]} 31... Rf2 {[%clk 0:00:59.7]}
32. Re6+ {[%clk 0:00:28.5]} 32... Kc5 {[%clk 0:00:59.4]} 33. c3 {[%clk
0:00:25.1]} 33... Rxh2 {[%clk 0:00:53.8]} 34. gxh4 {[%clk 0:00:25.4]} 34... Rxh4
{[%clk 0:00:51.8]} 35. Bf5 {[%clk 0:00:22.4]} 35... Rh1+ {[%clk 0:00:40.1]} 36.
Ka2 {[%clk 0:00:22.2]} 36... Rh2 {[%clk 0:00:40.6]} 37. Ka1 {[%clk 0:00:13.4]}
37... Bc1 {[%clk 0:00:37.6]} 38. b4+ {[%clk 0:00:13.4]} 38... axb4 {[%clk
0:00:37.5]} 39. cxb4+ {[%clk 0:00:13.8]} 39... Kb6 {[%clk 0:00:22.3]} 40. a4
{[%clk 0:00:14.3]} 40... Bd2 {[%clk 0:00:20.3]} 41. b5 {[%clk 0:00:14.2]} 41...
Bc3+ {[%clk 0:00:19.2]} 42. Kb1 {[%clk 0:00:14.8]} 42... Ka5 {[%clk 0:00:17]}
43. Rxc6 {[%clk 0:00:14.5]} 43... d4 {[%clk 0:00:17.1]} 44. Bc2 {[%clk
0:00:13.6]} 44... Kb4 {[%clk 0:00:10.1]} 45. Bd1 {[%clk 0:00:13.4]} 45... Rh1
{[%clk 0:00:08.8]} 46. Kc2 {[%clk 0:00:13.3]} 46... Rh2+ {[%clk 0:00:09.4]} 47.
Kc1 {[%clk 0:00:12]} 47... Ra2 {[%clk 0:00:09.1]} 48. Bc2 {[%clk 0:00:10.8]}
48... Ra1+ {[%clk 0:00:06.6]} 49. Bb1 {[%clk 0:00:10.6]} 49... Rxa4 {[%clk
0:00:06.9]} 50. b6 {[%clk 0:00:10.9]} 50... Ka5 {[%clk 0:00:05]} 51. b7 {[%clk
0:00:07.4]} 51... Rb4 {[%clk 0:00:05.4]} 52. Rc7 {[%clk 0:00:07.6]} 52... Bb2+
{[%clk 0:00:02.2]} 53. Kc2 {[%clk 0:00:07.4]} 53... Bc3 {[%clk 0:00:02.7]} 54.
Ba2 {[%clk 0:00:06]} 54... Rb2+ {[%clk 0:00:02.7]} 55. Kd3 {[%clk 0:00:06.4]}
55... Ka6 {[%clk 0:00:02.9]} 56. Bd5 {[%clk 0:00:04.5]} 56... Rd2+ {[%clk
0:00:02.6]} 57. Kc4 {[%clk 0:00:05]} 57... Rb2 {[%clk 0:00:03.3]} 58. Rd7 {[%clk
0:00:05]} 58... Rb4+ {[%clk 0:00:02.9]} 59. Kd3 {[%clk 0:00:04.9]} 59... Rb6
{[%clk 0:00:02.9]} 60. Rd8 {[%clk 0:00:05.2]} 60... Kb5 {[%clk 0:00:03.3]} 61.
b8=Q {[%clk 0:00:05]} 61... Rxb8 {[%clk 0:00:03.2]} 62. Rxb8+ {[%clk 0:00:05.9]}
62... Kc5 {[%clk 0:00:03.8]} 63. Be4 {[%clk 0:00:06.3]} 63... Kd6 {[%clk
0:00:04.4]} 64. Rb1 {[%clk 0:00:06.8]} 64... Ke5 {[%clk 0:00:04.8]} 65. Rf1
{[%clk 0:00:07.4]} 65... Ke6 {[%clk 0:00:05]} 66. Rf5 {[%clk 0:00:08]} 66... Kd6
{[%clk 0:00:05.3]} 67. Rd5+ {[%clk 0:00:08.7]} 67... Ke6 {[%clk 0:00:05.6]} 68.
Kc4 {[%clk 0:00:09.6]} 68... Kf6 {[%clk 0:00:05.6]} 69. Bd3 {[%clk 0:00:10.2]}
69... Ke6 {[%clk 0:00:05.8]} 70. Kc5 {[%clk 0:00:10.1]} 70... Kf6 {[%clk
0:00:04]} 71. Kd6 {[%clk 0:00:09.9]} 71... Bb4+ {[%clk 0:00:04.3]} 72. Kd7
{[%clk 0:00:10.2]} 72... Bc3 {[%clk 0:00:04.1]} 73. Kc6 {[%clk 0:00:10.7]} 73...
Ke6 {[%clk 0:00:04]} 74. Bc4 {[%clk 0:00:10.7]} 74... Kf6 {[%clk 0:00:04]} 75.
Kd6 {[%clk 0:00:10.2]} 75... Bb4+ {[%clk 0:00:03.9]} 76. Kd7 {[%clk 0:00:10.7]}
76... Bc3 {[%clk 0:00:04.8]} 77. Rd6+ {[%clk 0:00:08.1]} 77... Ke5 {[%clk
0:00:04.9]} 78. Re6+ {[%clk 0:00:07.8]} 78... Kf4 {[%clk 0:00:04.2]} 79. Kc6
{[%clk 0:00:08.4]} 79... Kf5 {[%clk 0:00:01.3]} 80. Kd5 {[%clk 0:00:08.8]} 80...
Kf4 {[%clk 0:00:02]} 81. Bd3 {[%clk 0:00:09.1]} 81... Kf3 {[%clk 0:00:01.8]} 82.
Rf6+ {[%clk 0:00:07.3]} 82... Ke3 {[%clk 0:00:02.7]} 83. Kc4 {[%clk 0:00:06.4]}
83... Kd2 {[%clk 0:00:02.1]} 84. Rf3 {[%clk 0:00:05.2]} 84... Ke1 {[%clk
0:00:02.1]} 85. Rh3 {[%clk 0:00:05.1]} 85... Kd2 {[%clk 0:00:02.5]} 86. Rh2+
{[%clk 0:00:04.5]} 86... Ke3 {[%clk 0:00:02.9]} 87. Rh3+ {[%clk 0:00:05]} 87...
Kd2 {[%clk 0:00:02.9]} 88. Be4 {[%clk 0:00:05.2]} 88... Ke2 {[%clk 0:00:02.9]}
89. Rd3 {[%clk 0:00:05.6]} 89... Kf2 {[%clk 0:00:03.1]} 90. Kb3 {[%clk
0:00:05.9]} 90... Ke2 {[%clk 0:00:03.7]} 91. Kc2 {[%clk 0:00:06.8]} 91... Kf2
{[%clk 0:00:04.1]} 92. Kd1 {[%clk 0:00:07.3]} 92... Kf1 {[%clk 0:00:03.9]} 93.
Bf5 {[%clk 0:00:05.8]} 93... Kf2 {[%clk 0:00:04.2]} 94. Bg4 {[%clk 0:00:05.4]}
94... Kf1 {[%clk 0:00:03.8]} 95. Rf3+ {[%clk 0:00:05.6]} 95... Kg2 {[%clk
0:00:04.2]} 96. Ke2 {[%clk 0:00:06.2]} 96... Kh2 {[%clk 0:00:04.1]} 97. Kf2
{[%clk 0:00:05.1]} 97... d3 {[%clk 0:00:03.2]} 98. Rh3# {[%clk 0:00:05.3]} 1-0

[Event "Late-Titled-Tuesday-Blitz-May-07-2024"]
[Site "Chess.com"]
[Date "2024.05.07"]
[Round "1"]
[White "Airquake"]
[Black "scandalgod"]
[Result "1-0"]
[WhiteElo "2851"]
[BlackElo "2501"]
[TimeControl "180+1"]
[EndTime "14:10:10 PDT"]
[Termination "Airquake won on time"]

1. e4 {[%clk 0:02:55.2]} 1... e5 {[%clk 0:02:59.6]} 2. Nf3 {[%clk 0:02:54]} 2...
Nc6 {[%clk 0:03:00]} 3. Bb5 {[%clk 0:02:53.6]} 3... a6 {[%clk 0:03:00.3]} 4. Ba4
{[%clk 0:02:49.9]} 4... d6 {[%clk 0:03:00.5]} 5. c3 {[%clk 0:02:48.3]} 5... f5
{[%clk 0:02:59.4]} 6. d3 {[%clk 0:02:45.5]} 6... Nf6 {[%clk 0:02:57.7]} 7. Qe2
{[%clk 0:02:36.5]} 7... Be7 {[%clk 0:02:55.9]} 8. Bb3 {[%clk 0:02:31.3]} 8...
Na5 {[%clk 0:02:54.7]} 9. Bc2 {[%clk 0:02:31.5]} 9... O-O {[%clk 0:02:52.3]} 10.
exf5 {[%clk 0:02:26.1]} 10... Bxf5 {[%clk 0:02:50.3]} 11. Nbd2 {[%clk
0:02:26.3]} 11... Nc6 {[%clk 0:02:43.4]} 12. h3 {[%clk 0:02:25.4]} 12... Qd7
{[%clk 0:02:42.2]} 13. Ne4 {[%clk 0:02:24.2]} 13... Rae8 {[%clk 0:02:41.5]} 14.
Be3 {[%clk 0:02:20]} 14... Kh8 {[%clk 0:02:37.4]} 15. O-O-O {[%clk 0:02:16.8]}
15... Nd5 {[%clk 0:02:36.6]} 16. Kb1 {[%clk 0:02:05.9]} 16... b5 {[%clk
0:02:28.6]} 17. Bc1 {[%clk 0:02:01.2]} 17... b4 {[%clk 0:02:22.3]} 18. c4 {[%clk
0:01:53.6]} 18... Nf6 {[%clk 0:02:21.6]} 19. Ba4 {[%clk 0:01:51.8]} 19... Rb8
{[%clk 0:02:01.6]} 20. Ng3 {[%clk 0:01:49.3]} 20... Bg6 {[%clk 0:01:57.7]} 21.
Nh4 {[%clk 0:01:27.2]} 21... Be8 {[%clk 0:01:50]} 22. Nhf5 {[%clk 0:00:58.8]}
22... Bd8 {[%clk 0:01:41.7]} 23. Qe3 {[%clk 0:00:48.2]} 23... Qf7 {[%clk
0:01:33.4]} 24. Ka1 {[%clk 0:00:43.1]} 24... Bd7 {[%clk 0:01:25]} 25. Rhg1
{[%clk 0:00:34.8]} 25... d5 {[%clk 0:01:06.5]} 26. Qc5 {[%clk 0:00:29.5]} 26...
Rb6 {[%clk 0:00:53.2]} 27. cxd5 {[%clk 0:00:27.8]} 27... Nxd5 {[%clk 0:00:46.8]}
28. Ne3 {[%clk 0:00:25.2]} 28... Nf4 {[%clk 0:00:40.8]} 29. Bxc6 {[%clk
0:00:18.2]} 29... Bxc6 {[%clk 0:00:25.5]} 30. Qxe5 {[%clk 0:00:17.8]} 30... b3
{[%clk 0:00:25.8]} 31. a3 {[%clk 0:00:16.8]} 31... Be7 {[%clk 0:00:20.5]} 32.
Nef5 {[%clk 0:00:13.8]} 32... Ng6 {[%clk 0:00:16.8]} 33. Qc3 {[%clk 0:00:13]}
33... Bf6 {[%clk 0:00:15.7]} 34. d4 {[%clk 0:00:13.5]} 34... Bd7 {[%clk
0:00:12.5]} 35. Rge1 {[%clk 0:00:06.9]} 35... Rc6 {[%clk 0:00:12.3]} 36. Qb4
{[%clk 0:00:07]} 36... Rb6 {[%clk 0:00:11.8]} 37. Qc5 {[%clk 0:00:07.5]} 37...
Rc8 {[%clk 0:00:10.5]} 38. d5 {[%clk 0:00:07.1]} 38... Ne5 {[%clk 0:00:08.9]}
39. Qd4 {[%clk 0:00:07]} 39... Ng6 {[%clk 0:00:08.4]} 40. Qc5 {[%clk 0:00:07.2]}
40... Ne5 {[%clk 0:00:08]} 41. Bf4 {[%clk 0:00:06.2]} 41... Ng6 {[%clk
0:00:07.3]} 42. Be3 {[%clk 0:00:06]} 42... Bxb2+ {[%clk 0:00:05]} 43. Kxb2
{[%clk 0:00:06.1]} 43... Rf6 {[%clk 0:00:05.1]} 44. Nd4 {[%clk 0:00:05.9]} 44...
Ne5 {[%clk 0:00:04.5]} 45. Qc3 {[%clk 0:00:05.7]} 45... c5 {[%clk 0:00:04.1]}
46. Ne6 {[%clk 0:00:05.3]} 46... Bxe6 {[%clk 0:00:03.8]} 47. dxe6 {[%clk
0:00:06.2]} 47... Qxe6 {[%clk 0:00:04.2]} 48. Bd2 {[%clk 0:00:06.4]} 48... Nc4+
{[%clk 0:00:03.8]} 49. Kb1 {[%clk 0:00:06.5]} 49... Qf7 {[%clk 0:00:03.9]} 50.
Bc1 {[%clk 0:00:06.5]} 50... Rxf2 {[%clk 0:00:03]} 51. Re2 {[%clk 0:00:06.8]}
51... Rxe2 {[%clk 0:00:01.8]} 52. Nxe2 {[%clk 0:00:07.7]} 52... b2 {[%clk
0:00:02.3]} 53. Bxb2 {[%clk 0:00:07.8]} 53... Rb8 {[%clk 0:00:02.8]} 54. Rd2
{[%clk 0:00:07.4]} 54... Nxd2+ {[%clk 0:00:02.9]} 55. Qxd2 {[%clk 0:00:08.3]}
55... Qf1+ {[%clk 0:00:03.2]} 56. Nc1 {[%clk 0:00:08.4]} 56... Qf7 {[%clk
0:00:04.1]} 57. Qc3 {[%clk 0:00:08.7]} 57... Qg6+ {[%clk 0:00:04.7]} 58. Ka1
{[%clk 0:00:08.3]} 58... Qf7 {[%clk 0:00:05.3]} 59. Qxc5 {[%clk 0:00:08.4]}
59... Qg8 {[%clk 0:00:04.5]} 60. Qd4 {[%clk 0:00:08.7]} 60... Qf7 {[%clk
0:00:04.4]} 61. g4 {[%clk 0:00:09.1]} 61... Rc8 {[%clk 0:00:03.8]} 62. Nd3
{[%clk 0:00:09]} 62... Re8 {[%clk 0:00:03.6]} 63. Ne5 {[%clk 0:00:09.1]} 63...
Qe7 {[%clk 0:00:03.4]} 64. h4 {[%clk 0:00:08.7]} 64... Qe6 {[%clk 0:00:02.7]}
65. h5 {[%clk 0:00:08.9]} 65... Rf8 {[%clk 0:00:03]} 66. Qd3 {[%clk 0:00:08.1]}
66... Rc8 {[%clk 0:00:02.5]} 67. h6 {[%clk 0:00:07.8]} 67... gxh6 {[%clk
0:00:02.2]} 68. Nf7+ {[%clk 0:00:07.5]} 68... Kg8 {[%clk 0:00:02.7]} 69. Ne5
{[%clk 0:00:07.4]} 69... Re8 {[%clk 0:00:02.2]} 70. g5 {[%clk 0:00:04.2]} 70...
Rf8 {[%clk 0:00:02.6]} 71. gxh6 {[%clk 0:00:04.4]} 71... Qxh6 {[%clk 0:00:02.1]}
72. Qg3+ {[%clk 0:00:04.8]} 72... Qg7 {[%clk 0:00:01.7]} 73. Qb3+ {[%clk
0:00:04.5]} 73... Kh8 {[%clk 0:00:01.3]} 74. Ng6+ {[%clk 0:00:05.2]} 74... hxg6
{[%clk 0:00:00.6]} 75. Bxg7+ {[%clk 0:00:05.9]} 75... Kxg7 {[%clk 0:00:00.7]}
76. Qc3+ {[%clk 0:00:06.5]} 76... Rf6 {[%clk 0:00:00.8]} 77. Kb2 {[%clk
0:00:07]} 77... Kf7 {[%clk 0:00:01.7]} 78. Qc7+ {[%clk 0:00:07.1]} 78... Kf8
{[%clk 0:00:01.8]} 79. Kc3 {[%clk 0:00:07.2]} 79... Rf7 {[%clk 0:00:02.1]} 80.
Qd8+ {[%clk 0:00:06.7]} 80... Kg7 {[%clk 0:00:02.4]} 81. Qd4+ {[%clk 0:00:07.1]}
81... Rf6 {[%clk 0:00:02.8]} 82. Kc4 {[%clk 0:00:07.8]} 82... Kf7 {[%clk
0:00:03.3]} 83. Qd7+ {[%clk 0:00:07.9]} 83... Kg8 {[%clk 0:00:02.9]} 84. Kd5
{[%clk 0:00:08.3]} 84... g5 {[%clk 0:00:02.9]} 85. Ke5 {[%clk 0:00:08]} 85...
Rg6 {[%clk 0:00:03.1]} 86. Kf5 {[%clk 0:00:08]} 86... Rg7 {[%clk 0:00:04]} 87.
Qe8+ {[%clk 0:00:08.5]} 87... Kh7 {[%clk 0:00:04.2]} 88. Kf6 {[%clk 0:00:09.1]}
88... g4 {[%clk 0:00:02.5]} 89. Qh5+ {[%clk 0:00:06.6]} 89... Kg8 {[%clk
0:00:02.8]} 90. Qd5+ {[%clk 0:00:06.4]} 90... Kh7 {[%clk 0:00:02.9]} 91. Qd3+
{[%clk 0:00:06.1]} 91... Kg8 {[%clk 0:00:02.9]} 92. Qxa6 {[%clk 0:00:06.3]}
92... g3 {[%clk 0:00:02.6]} 93. Qc8+ {[%clk 0:00:06.4]} 93... Kh7 {[%clk
0:00:02.8]} 94. Qh3+ {[%clk 0:00:06.8]} 94... Kg8 {[%clk 0:00:02.8]} 95. Qg2
{[%clk 0:00:07.4]} 95... Kh7 {[%clk 0:00:02.8]} 96. a4 {[%clk 0:00:07.4]} 96...
Kg8 {[%clk 0:00:02.7]} 97. a5 {[%clk 0:00:07.7]} 97... Kf8 {[%clk 0:00:02.9]}
98. a6 {[%clk 0:00:07.5]} 98... Kg8 {[%clk 0:00:02.9]} 99. Ke6 {[%clk
0:00:05.8]} 99... Kh7 {[%clk 0:00:02.7]} 100. Kd5 {[%clk 0:00:05.1]} 100... Kh6
{[%clk 0:00:02.6]} 101. Kc5 {[%clk 0:00:05.5]} 101... Kh5 {[%clk 0:00:02.9]}
102. Kb6 {[%clk 0:00:06]} 102... Kh4 {[%clk 0:00:02.6]} 103. a7 {[%clk
0:00:06.6]} 103... Rg6+ {[%clk 0:00:03]} 104. Kb7 {[%clk 0:00:06.4]} 104... Rg7+
{[%clk 0:00:03.5]} 105. Kb6 {[%clk 0:00:06.9]} 105... Rg6+ {[%clk 0:00:04]} 106.
Kc5 {[%clk 0:00:07.5]} 106... Rg5+ {[%clk 0:00:04.2]} 107. Kd4 {[%clk
0:00:08.2]} 107... Rg8 {[%clk 0:00:03.5]} 108. a8=Q {[%clk 0:00:07.7]} 1-0

[Event "Late-Titled-Tuesday-Blitz-May-07-2024"]
[Site "Chess.com"]
[Date "2024.05.07"]
[Round "2"]
[White "PNEPaul"]
[Black "YouShallNotPass001"]
[Result "0-1"]
[WhiteElo "1947"]
[BlackElo "2447"]
[TimeControl "180+1"]
[EndTime "14:12:04 PDT"]
[Termination "YouShallNotPass001 won by resignation"]

1. e4 {[%clk 0:03:00.9]} 1... Nf6 {[%clk 0:03:00.9]} 2. Bc4 {[%clk 0:02:59.9]}
2... e6 {[%clk 0:02:29.1]} 3. d3 {[%clk 0:02:56.7]} 3... d5 {[%clk 0:02:28.6]}
4. exd5 {[%clk 0:02:56.3]} 4... exd5 {[%clk 0:02:29.5]} 5. Bb3 {[%clk
0:02:56.2]} 5... Be7 {[%clk 0:02:27.7]} 6. Nf3 {[%clk 0:02:56]} 6... O-O {[%clk
0:02:28.2]} 7. h3 {[%clk 0:02:55.5]} 7... c5 {[%clk 0:02:28.7]} 8. c3 {[%clk
0:02:54.2]} 8... Nc6 {[%clk 0:02:29]} 9. O-O {[%clk 0:02:54]} 9... b5 {[%clk
0:02:28.7]} 10. Bc2 {[%clk 0:02:52.6]} 10... a5 {[%clk 0:02:27.1]} 11. Bg5
{[%clk 0:02:51.5]} 11... h6 {[%clk 0:02:25.1]} 12. Bh4 {[%clk 0:02:51.5]} 12...
Ba6 {[%clk 0:02:23.8]} 13. Re1 {[%clk 0:02:50.2]} 13... Ra7 {[%clk 0:02:22.9]}
14. Nbd2 {[%clk 0:02:48.1]} 14... d4 {[%clk 0:02:20]} 15. Bg5 {[%clk 0:02:45.9]}
15... hxg5 {[%clk 0:02:17.4]} 0-1

[Event "Late-Titled-Tuesday-Blitz-May-07-2024"]
[Site "Chess.com"]
[Date "2024.05.07"]
[Round "2"]
[White "Harsha_Bharathakoti"]
[Black "chess123456s"]
[Result "0-1"]
[WhiteElo "2945"]
[BlackElo "2646"]
[TimeControl "180+1"]
[EndTime "14:12:52 PDT"]
[Termination "chess123456s won by resignation"]

1. Nf3 {[%clk 0:02:48.2]} 1... d5 {[%clk 0:02:57.9]} 2. c4 {[%clk 0:02:48.2]}
2... d4 {[%clk 0:02:57.8]} 3. b4 {[%clk 0:02:48.5]} 3... Bg4 {[%clk 0:02:57.1]}
4. g3 {[%clk 0:02:46.7]} 4... Bxf3 {[%clk 0:02:57.1]} 5. exf3 {[%clk 0:02:47.6]}
5... e5 {[%clk 0:02:58]} 6. Qa4+ {[%clk 0:02:36.6]} 6... Nd7 {[%clk 0:02:56]} 7.
Bg2 {[%clk 0:02:03.2]} 7... a5 {[%clk 0:02:55.4]} 8. b5 {[%clk 0:02:03.8]} 8...
Nc5 {[%clk 0:02:53.7]} 9. Qc2 {[%clk 0:02:04.4]} 9... Nf6 {[%clk 0:02:49.7]} 10.
d3 {[%clk 0:02:04.2]} 10... Bd6 {[%clk 0:02:49.1]} 11. O-O {[%clk 0:02:04.9]}
11... O-O {[%clk 0:02:49.1]} 12. Re1 {[%clk 0:02:05.6]} 12... h6 {[%clk
0:02:47.1]} 13. Ba3 {[%clk 0:02:01.1]} 13... Re8 {[%clk 0:02:45.5]} 14. Nd2
{[%clk 0:02:01.3]} 14... Qd7 {[%clk 0:02:44.4]} 15. Bxc5 {[%clk 0:01:59.1]}
15... Bxc5 {[%clk 0:02:44.4]} 16. f4 {[%clk 0:02:00]} 16... exf4 {[%clk
0:02:33.4]} 17. Bxb7 {[%clk 0:02:00.7]} 17... fxg3 {[%clk 0:02:33.7]} 18. hxg3
{[%clk 0:01:57.1]} 18... Rxe1+ {[%clk 0:02:30.7]} 19. Rxe1 {[%clk 0:01:58]}
19... Re8 {[%clk 0:02:31.1]} 20. Re2 {[%clk 0:01:58.4]} 20... Rxe2 {[%clk
0:02:30.5]} 0-1

[Event "Late-Titled-Tuesday-Blitz-May-07-2024"]
[Site "Chess.com"]
[Date "2024.05.07"]
[Round "2"]
[White "K_A_S_T_O_R"]
[Black "CarrotsandPizza"]
[Result "1-0"]
[WhiteElo "2842"]
[BlackElo "2576"]
[TimeControl "180+1"]
[EndTime "14:13:01 PDT"]
[Termination "K_A_S_T_O_R won by checkmate"]

1. e4 {[%clk 0:03:00.9]} 1... c5 {[%clk 0:03:00.2]} 2. Nf3 {[%clk 0:03:00.1]}
2... Qb6 {[%clk 0:03:00.7]} 3. c4 {[%clk 0:02:55]} 3... Nc6 {[%clk 0:03:00.7]}
4. Nc3 {[%clk 0:02:55.6]} 4... g6 {[%clk 0:03:01.3]} 5. Nd5 {[%clk 0:02:54.5]}
5... Qa5 {[%clk 0:03:00.7]} 6. b4 {[%clk 0:02:50.7]} 6... cxb4 {[%clk 0:03:00]}
7. Bb2 {[%clk 0:02:50.8]} 7... f6 {[%clk 0:03:00.1]} 8. d4 {[%clk 0:02:46.1]}
8... e6 {[%clk 0:02:58]} 9. Ne3 {[%clk 0:02:44.7]} 9... Bg7 {[%clk 0:02:58]} 10.
Be2 {[%clk 0:02:41]} 10... b3+ {[%clk 0:02:58.4]} 11. Kf1 {[%clk 0:02:38.1]}
11... bxa2 {[%clk 0:02:58.3]} 12. d5 {[%clk 0:02:35.7]} 12... Nb4 {[%clk
0:02:38.5]} 13. Qb3 {[%clk 0:02:35.1]} 13... Qc5 {[%clk 0:02:32.4]} 14. Bd4
{[%clk 0:02:31.5]} 14... Qf8 {[%clk 0:02:26.7]} 15. c5 {[%clk 0:02:29.9]} 15...
a5 {[%clk 0:02:26.1]} 16. Bc4 {[%clk 0:02:25.4]} 16... e5 {[%clk 0:02:26]} 17.
d6 {[%clk 0:02:18.1]} 17... exd4 {[%clk 0:02:25.5]} 18. Nd5 {[%clk 0:02:16.1]}
18... Na6 {[%clk 0:02:22]} 19. Bxa6 {[%clk 0:02:14.9]} 19... Rxa6 {[%clk
0:02:21.7]} 20. Nc7+ {[%clk 0:02:14.8]} 20... Kd8 {[%clk 0:02:17.1]} 21. Nxa6
{[%clk 0:02:14.7]} 21... bxa6 {[%clk 0:02:17.5]} 22. Qb8 {[%clk 0:02:14.1]}
22... Qf7 {[%clk 0:02:14]} 23. Qc7+ {[%clk 0:02:13.2]} 23... Ke8 {[%clk
0:02:13.9]} 24. Qxc8# {[%clk 0:02:13.9]} 1-0

[Event "Late-Titled-Tuesday-Blitz-May-07-2024"]
[Site "Chess.com"]
[Date "2024.05.07"]
[Round "2"]
[White "SharathRk6"]
[Black "aa175"]
[Result "0-1"]
[WhiteElo "2471"]
[BlackElo "2728"]
[TimeControl "180+1"]
[EndTime "14:13:06 PDT"]
[Termination "aa175 won by resignation"]

1. e4 {[%clk 0:03:00.9]} 1... e5 {[%clk 0:02:59.1]} 2. Nf3 {[%clk 0:03:00.5]}
2... Nf6 {[%clk 0:02:55.9]} 3. Nxe5 {[%clk 0:03:00.1]} 3... d6 {[%clk
0:02:55.4]} 4. Nf3 {[%clk 0:03:00.2]} 4... Nxe4 {[%clk 0:02:56.1]} 5. d4 {[%clk
0:02:59.5]} 5... d5 {[%clk 0:02:55.6]} 6. Bd3 {[%clk 0:03:00.1]} 6... Bd6 {[%clk
0:02:55.8]} 7. O-O {[%clk 0:02:59.6]} 7... O-O {[%clk 0:02:56.5]} 8. c4 {[%clk
0:03:00.1]} 8... c6 {[%clk 0:02:57.1]} 9. Nc3 {[%clk 0:02:59.9]} 9... Nxc3
{[%clk 0:02:57.7]} 10. bxc3 {[%clk 0:03:00.6]} 10... dxc4 {[%clk 0:02:58.6]} 11.
Bxc4 {[%clk 0:03:00.7]} 11... Bf5 {[%clk 0:02:59.1]} 12. Bd3 {[%clk 0:03:00.6]}
12... Bxd3 {[%clk 0:02:58.9]} 13. Qxd3 {[%clk 0:03:01.3]} 13... h6 {[%clk
0:02:59.7]} 14. c4 {[%clk 0:03:00.1]} 14... Nd7 {[%clk 0:03:00.6]} 15. Bd2
{[%clk 0:02:59.4]} 15... Re8 {[%clk 0:03:01.5]} 16. Rab1 {[%clk 0:02:59.1]}
16... Rc8 {[%clk 0:03:02]} 17. Rxb7 {[%clk 0:02:58.6]} 17... Nc5 {[%clk
0:03:02.6]} 18. Qb1 {[%clk 0:02:49.1]} 18... Nxb7 {[%clk 0:03:02.9]} 19. Qxb7
{[%clk 0:02:50]} 19... Qb6 {[%clk 0:03:01.7]} 20. Rb1 {[%clk 0:02:43.2]} 20...
Qxb7 {[%clk 0:02:57.8]} 21. Rxb7 {[%clk 0:02:44.1]} 21... Rb8 {[%clk 0:02:58.2]}
22. Rxb8 {[%clk 0:02:43.6]} 22... Rxb8 {[%clk 0:02:58.3]} 23. Kf1 {[%clk
0:02:32.5]} 23... Rb2 {[%clk 0:02:58.3]} 24. a4 {[%clk 0:02:31.7]} 24... Bb4
{[%clk 0:02:55.6]} 25. Bf4 {[%clk 0:02:25.2]} 25... Ra2 {[%clk 0:02:54.2]} 26.
d5 {[%clk 0:02:25]} 26... cxd5 {[%clk 0:02:54]} 27. cxd5 {[%clk 0:02:24.9]}
27... Rxa4 {[%clk 0:02:54.6]} 28. d6 {[%clk 0:02:25.5]} 28... Kf8 {[%clk
0:02:54.1]} 29. g3 {[%clk 0:02:14.3]} 29... f6 {[%clk 0:02:52.9]} 30. Nd4 {[%clk
0:02:02]} 30... g5 {[%clk 0:02:49.3]} 31. Nf3 {[%clk 0:01:45]} 31... gxf4 {[%clk
0:02:48.7]} 0-1

[Event "Late-Titled-Tuesday-Blitz-May-07-2024"]
[Site "Chess.com"]
[Date "2024.05.07"]
[Round "2"]
[White "Pidzsy"]
[Black "moro182"]
[Result "0-1"]
[WhiteElo "2590"]
[BlackElo "2870"]
[TimeControl "180+1"]
[EndTime "14:13:08 PDT"]
[Termination "moro182 won by resignation"]

1. g3 {[%clk 0:03:00.9]} 1... g6 {[%clk 0:02:54.7]} 2. Bg2 {[%clk 0:02:59.9]}
2... Bg7 {[%clk 0:02:55.6]} 3. Nf3 {[%clk 0:03:00.4]} 3... d6 {[%clk 0:02:56]}
4. O-O {[%clk 0:03:00.5]} 4... Bd7 {[%clk 0:02:56.7]} 5. d4 {[%clk 0:03:00.6]}
5... Qc8 {[%clk 0:02:57.2]} 6. c4 {[%clk 0:02:59.4]} 6... Nc6 {[%clk 0:02:57.8]}
7. Nc3 {[%clk 0:02:59.4]} 7... Bh3 {[%clk 0:02:58.4]} 8. e4 {[%clk 0:02:49]}
8... h5 {[%clk 0:02:56.8]} 9. Bxh3 {[%clk 0:02:40.2]} 9... Qxh3 {[%clk
0:02:56.1]} 10. Ng5 {[%clk 0:02:36.6]} 10... Qg4 {[%clk 0:02:50.1]} 11. Qxg4
{[%clk 0:02:22.1]} 11... hxg4 {[%clk 0:02:51]} 12. d5 {[%clk 0:02:20.7]} 12...
Ne5 {[%clk 0:02:50.9]} 13. b3 {[%clk 0:02:02.3]} 13... Rh5 {[%clk 0:02:31.3]}
14. Kg2 {[%clk 0:01:56.4]} 14... Nf3 {[%clk 0:02:26]} 15. Nxf3 {[%clk 0:01:46]}
15... gxf3+ {[%clk 0:02:26.9]} 16. Kxf3 {[%clk 0:01:46.9]} 16... Bxc3 {[%clk
0:02:26]} 17. Rb1 {[%clk 0:01:47.8]} 17... Rxh2 {[%clk 0:02:24.5]} 0-1